bitfinex-derivatives/quotes_ETHF0:USTF0_20250106
["timestamp","ask_amount","ask_price","bid_price","bid_amount"]
[1736186439913,0.27229,3672.0,3671.9,0.27229]
[1736186440209,3.2078,3672.0,3671.8,0.5964]
[1736186440608,0.27229,3671.9,3671.8,0.5964]
[1736186441016,3.2078,3672.0,3671.8,0.5964]
[1736186441419,0.27229,3671.9,3671.8,0.5964]
[1736186441912,0.2723,3671.8,3671.7,0.5699]
[1736186442419,0.27232,3671.5,3671.3,42.5262]
[1736186442618,3.48012,3671.5,3671.3,42.5262]
[1736186442924,3.2078,3671.5,3671.4,2.16642043]
[1736186445821,3.2078,3671.5,3671.4,2.43875043]
[1736186446719,1.43091,3671.7,3671.4,2.43875043]
[1736186446923,3.2078,3671.9,3671.8,0.2723]
[1736186447122,3.2078,3671.9,3671.8,2.43872043]
[1736186447520,3.2078,3671.9,3671.8,2.16642043]
[1736186447725,3.2078,3671.9,3671.7,0.2723]
[1736186447916,3.2078,3671.9,3671.5,2.16642043]
[1736186448313,3.2078,3671.9,3671.7,0.2723]
[1736186448518,3.2078,3671.9,3671.6,0.87421]
[1736186448823,3.7901,3671.9,3671.6,0.87421]
[1736186450222,3.7901,3671.9,3671.7,0.27231]
[1736186451226,3.7901,3671.9,3671.8,2.16642043]
[1736186451518,3.2078,3671.9,3671.8,2.43872043]
[1736186452526,3.2078,3671.9,3671.8,2.16642043]
[1736186452727,3.2078,3671.9,3671.8,2.43872043]
[1736186453529,3.48009,3671.9,3671.6,0.87421]
[1736186453723,0.5688,3671.8,3671.6,0.87421]
[1736186453923,1.1858,3671.8,3671.6,0.87421]
[1736186454118,1.1858,3671.8,3671.6,0.6019]
[1736186454322,1.1858,3671.8,3671.7,0.27231]
[1736186454717,1.1858,3671.8,3671.6,0.87421]
[1736186454924,1.1858,3671.8,3671.6,0.6019]
[1736186455124,1.1858,3671.8,3671.6,0.87421]
[1736186455329,1.1858,3671.8,3671.6,0.6019]
[1736186455625,1.1858,3671.8,3671.6,0.87421]
[1736186456026,0.27234,3671.3,3670.3,3.2078]
[1736186456228,3.2078,3670.9,3670.6,0.6088]
[1736186456529,3.48017,3670.9,3670.6,0.6088]
[1736186457132,3.2078,3670.9,3670.3,3.2078]
[1736186457319,3.2078,3670.5,3670.2,0.27242]
[1736186457623,3.2078,3670.5,3670.3,0.6184]
[1736186457823,3.2078,3670.5,3670.3,0.89081]
[1736186458221,3.2078,3670.5,3670.3,0.6184]
[1736186458429,3.4802,3670.5,3670.3,0.6184]
[1736186458824,3.2078,3670.5,3670.0,0.5825]
[1736186459126,3.48023,3670.1,3670.0,0.5825]
[1736186459327,0.27243,3670.0,3669.7,0.5795]
[1736186459729,3.2078,3670.1,3669.7,0.5795]
[1736186459918,0.27245,3669.9,3669.7,0.5795]
[1736186460122,3.2078,3670.1,3669.7,0.5795]
[1736186460330,0.27245,3669.8,3669.7,0.5795]
[1736186460734,3.2078,3670.1,3669.7,0.5795]
[1736186460930,3.2078,3670.1,3669.8,2.43886043]
[1736186461128,3.48023,3670.1,3669.8,2.43886043]
[1736186461625,0.27244,3670.0,3669.8,2.16642043]
[1736186461934,3.2078,3670.1,3670.0,0.27243]
[1736186462125,3.2078,3670.1,3669.8,2.16642043]
[1736186462126,3.2078,3670.5,3669.8,2.16642043]
[1736186462323,3.2078,3670.9,3670.4,2.16642043]
[1736186462530,3.2078,3670.9,3670.5,1.7884]
[1736186462734,3.2078,3670.9,3670.6,40.8]
[1736186463233,0.2724,3670.5,3670.4,1.151]
[1736186463430,0.27241,3670.4,3669.8,5.08602043]
[1736186463635,3.2078,3669.9,3669.8,2.3484]
[1736186463830,3.48024,3669.9,3669.8,0.5868]
[1736186464134,3.48024,3669.9,3669.4,0.5712]
[1736186464135,3.2078,3669.9,3669.4,0.5712]
[1736186464329,2.16642043,3670.2,3669.4,0.84368]
[1736186464330,3.2078,3669.5,3669.4,0.84368]
[1736186465730,3.2078,3669.5,3669.4,0.5712]
[1736186465936,3.48027,3669.5,3669.4,40.8]
[1736186466136,3.48027,3669.5,3669.0,1.2123]
[1736186466137,3.2078,3669.5,3669.0,1.2123]
[1736186466338,3.2078,3669.5,3668.5,0.5705]
[1736186466339,3.2078,3669.1,3668.6,2.16642043]
[1736186466538,1.2049,3669.4,3668.6,2.79192043]
[1736186466539,3.2078,3668.7,3668.6,2.79192043]
[1736186466726,3.2078,3668.7,3668.6,43.59192043]
[1736186467333,3.2078,3668.7,3668.6,0.6255]
[1736186467538,3.2078,3668.7,3668.6,3.06446043]
[1736186467734,3.2078,3668.7,3668.6,43.86446043]
[1736186469531,3.2078,3668.7,3668.6,43.59192043]
[1736186469726,3.2078,3668.7,3668.6,40.8]
[1736186470140,3.48033,3668.7,3668.6,40.8]
[1736186470542,3.48033,3668.7,3668.2,0.6032]
[1736186470543,0.27256,3668.4,3668.2,0.6032]
[1736186470839,3.2078,3668.3,3668.2,0.6032]
[1736186471042,3.2078,3668.3,3668.2,42.82677]
[1736186471238,3.2078,3668.7,3668.6,0.27254]
[1736186471542,3.48033,3668.7,3668.4,2.43897043]
[1736186471733,3.2078,3668.7,3668.5,0.27254]
[1736186471933,3.2078,3668.7,3668.4,2.43897043]
[1736186472134,3.2078,3668.7,3668.6,0.27254]
[1736186473037,3.2078,3668.7,3668.5,0.27254]
[1736186473234,3.2078,3668.7,3668.4,2.16642043]
[1736186473438,3.2078,3668.7,3668.6,0.27254]
[1736186473742,3.2078,3669.2,3669.1,0.2725]
[1736186473942,3.2078,3669.7,3669.6,0.27246]
[1736186474439,3.2078,3669.7,3669.2,0.6188]
[1736186474635,3.2078,3669.3,3668.8,2.73642043]
[1736186475032,3.2078,3669.3,3669.1,0.2725]
[1736186475436,3.48029,3669.3,3669.0,0.2725]
[1736186475632,3.48029,3669.3,3668.8,2.73642043]
[1736186475633,3.48029,3669.3,3668.9,0.27251]
[1736186475829,0.27249,3669.2,3669.1,40.8]
[1736186476036,3.2078,3669.3,3669.1,41.0725]
[1736186476236,3.48029,3669.3,3669.1,40.8]
[1736186476442,0.27249,3669.2,3669.1,40.8]
[1736186476840,1.43999,3669.2,3669.1,40.8]
[1736186477733,3.2078,3669.3,3669.1,40.8]
[1736186477937,3.2078,3669.3,3669.1,42.96642043]
[1736186478441,3.2078,3669.3,3669.2,0.27249]
[1736186478740,3.2078,3669.3,3669.2,0.89949]
[1736186479543,3.2078,3669.3,3669.2,1.51329]
[1736186480732,3.2078,3669.3,3669.2,1.2408]
[1736186480939,3.2078,3669.3,3669.2,1.51329]
[1736186482344,3.2078,3669.3,3669.2,1.2408]
[1736186482539,3.2078,3669.3,3669.1,42.96642043]
[1736186482845,0.27251,3669.0,3668.8,1.1715]
[1736186483032,3.2078,3668.9,3668.2,3.31742043]
[1736186483230,0.6133,3668.8,3668.2,44.11742043]
[1736186483637,3.2078,3668.5,3668.3,0.27256]
[1736186484240,3.48035,3668.5,3668.2,43.23898043]
[1736186484443,3.2078,3668.5,3668.3,0.27256]
[1736186484646,3.2078,3668.5,3668.3,0.27255]
[1736186484830,3.2078,3668.5,3668.2,40.8]
[1736186485038,0.27256,3668.3,3668.2,40.8]
[1736186485942,3.2078,3668.5,3667.7,0.6067]
[1736186486148,3.2078,3668.0,3667.9,2.43901043]
[1736186486539,3.2078,3668.0,3667.9,43.23901043]
[1736186487243,3.2078,3668.0,3667.9,42.96642043]
[1736186487438,3.2078,3668.0,3667.9,43.23901043]
[1736186487839,3.2078,3668.0,3667.9,42.96642043]
[1736186490446,3.2078,3668.0,3667.9,40.8]
[1736186491542,3.48038,3668.0,3667.9,40.8]
[1736186491943,3.2078,3668.0,3667.9,40.8]
[1736186492443,3.48038,3668.0,3667.9,40.8]
[1736186493547,3.2078,3669.8,3667.9,51.17422043]
[1736186493844,3.2078,3669.8,3668.7,2.16642043]
[1736186493845,0.5982,3669.6,3668.7,2.16642043]
[1736186494046,3.2078,3669.3,3668.7,1.151]
[1736186494241,0.27251,3669.1,3668.8,40.8]
[1736186494547,1.1993,3669.0,3668.9,0.27252]
[1736186494749,1.7975,3669.0,3668.9,0.27252]
[1736186495248,1.7975,3669.0,3668.8,43.23894043]
[1736186495448,0.27252,3668.9,3668.6,0.27254]
[1736186495744,0.27256,3668.3,3668.1,0.27257]
[1736186495950,0.27256,3668.3,3668.0,0.27258]
[1736186495951,1.48337,3668.2,3668.0,0.27258]
[1736186496145,1.2108,3668.2,3667.8,1.151]
[1736186496341,1.2108,3668.2,3666.9,7.7638]
[1736186496342,3.2078,3667.9,3667.3,2.16642043]
[1736186496542,0.2726,3667.8,3667.6,0.27261]
[1736186496744,0.2726,3667.7,3667.2,0.27264]
[1736186496946,0.27265,3667.2,3667.0,2.16642043]
[1736186497246,0.27265,3667.2,3666.8,0.27266]
[1736186497247,0.6065,3667.1,3666.8,0.27266]
[1736186497448,0.6065,3667.1,3666.9,0.27266]
[1736186497644,0.6065,3667.1,3666.7,1.151]
[1736186497943,0.6065,3667.1,3666.9,0.27266]
[1736186498348,0.6065,3667.1,3666.8,40.8]
[1736186498652,3.48046,3667.0,3666.8,40.8]
[1736186498842,3.2078,3667.0,3666.8,40.8]
[1736186499038,3.48046,3667.0,3666.8,40.8]
[1736186499449,3.2078,3667.0,3666.8,40.8]
[1736186499641,3.2078,3667.0,3666.5,2.57001152]
[1736186499642,0.27266,3666.9,3666.5,2.57001152]
[1736186499841,0.27266,3666.9,3666.6,0.27269]
[1736186500045,0.27266,3666.9,3666.5,2.84270152]
[1736186500247,0.27266,3666.9,3666.5,2.57001152]
[1736186500445,3.2078,3667.0,3666.5,2.84270152]
[1736186500656,3.48046,3667.0,3666.6,0.27268]
[1736186500955,0.27267,3666.9,3666.5,2.84270152]
[1736186501148,0.6065,3667.1,3666.9,2.57001152]
[1736186501353,1.1883,3667.3,3667.0,0.27266]
[1736186501650,1.1883,3667.3,3666.9,2.57001152]
[1736186502247,3.2078,3667.4,3666.9,2.57001152]
[1736186502452,3.2078,3667.4,3667.3,2.57001152]
[1736186502640,3.48043,3667.4,3667.3,2.57001152]
[1736186502844,3.2078,3667.4,3666.3,4.9666]
[1736186503040,3.2078,3667.4,3666.5,2.57001152]
[1736186503041,3.2078,3667.0,3666.5,2.57001152]
[1736186503254,0.5918,3666.9,3666.5,2.57001152]
[1736186503754,0.2727,3666.4,3666.1,3.18011152]
[1736186503945,0.27273,3666.1,3665.9,3.2078]
[1736186504148,0.27273,3666.1,3665.8,1.152]
[1736186504347,3.2078,3666.1,3665.5,1.152]
[1736186504856,3.2078,3666.1,3665.5,1.42476]
[1736186505048,3.2078,3666.1,3665.5,1.152]
[1736186505249,0.27274,3665.9,3665.5,1.152]
[1736186505649,3.2078,3666.1,3665.5,1.152]
[1736186505955,0.27275,3665.7,3665.6,40.8]
[1736186506249,0.27275,3665.7,3665.3,2.84279152]
[1736186506451,3.2078,3665.7,3664.9,3.2078]
[1736186506651,0.5787,3665.6,3664.9,3.2078]
[1736186506856,0.2728,3665.1,3665.0,40.8]
[1736186507259,0.27281,3664.9,3664.5,3.72201152]
[1736186507456,3.48062,3664.9,3664.5,3.72201152]
[1736186507654,3.2078,3664.9,3664.6,40.8]
[1736186507857,0.27283,3664.8,3664.6,40.8]
[1736186508557,3.2078,3664.9,3664.6,40.8]
[1736186508756,0.27282,3664.8,3664.6,40.8]
[1736186509155,3.2078,3664.9,3664.6,40.8]
[1736186509357,0.27283,3664.7,3664.2,1.152]
[1736186509659,0.27283,3664.7,3664.2,1.42486]
[1736186509959,0.27284,3664.6,3664.3,40.8]
[1736186510149,0.27283,3664.7,3664.3,40.8]
[1736186510355,3.2078,3664.9,3664.3,40.8]
[1736186510356,0.27284,3664.6,3664.3,40.8]
[1736186510653,3.2078,3664.9,3664.3,40.8]
[1736186510963,3.2078,3664.9,3664.3,41.07285]
[1736186511258,3.2078,3664.9,3664.4,0.27285]
[1736186511463,0.27282,3664.8,3664.4,0.27285]
[1736186511958,3.2078,3664.9,3664.5,0.27284]
[1736186512156,3.48062,3664.9,3664.4,0.27285]
[1736186512656,3.2078,3664.9,3664.5,0.27284]
[1736186512859,3.2078,3664.9,3664.8,0.27282]
[1736186513254,3.2078,3665.4,3664.8,1.152]
[1736186513455,0.5787,3665.6,3665.2,2.57001152]
[1736186513655,4.60245,3665.8,3665.4,0.27277]
[1736186513854,4.3297,3665.8,3665.2,2.57001152]
[1736186514060,0.27277,3665.6,3665.2,2.57001152]
[1736186514254,0.27277,3665.6,3665.3,0.27278]
[1736186514454,4.3297,3665.8,3665.2,2.57001152]
[1736186514650,3.7555,3665.8,3665.2,2.57001152]
[1736186514877,0.27274,3665.9,3665.6,0.27276]
[1736186515056,0.27275,3665.9,3665.4,0.27278]
[1736186515357,0.27275,3665.9,3665.6,0.27276]
[1736186515554,3.2078,3666.2,3665.6,2.57001152]
[1736186515760,1.1482,3666.3,3665.8,0.27274]
[1736186516265,0.27273,3666.1,3665.8,0.27274]
[1736186516552,1.1482,3666.3,3665.8,0.27275]
[1736186516759,1.1482,3666.3,3665.7,40.8]
[1736186516954,4.43432,3666.7,3665.7,40.8]
[1736186516955,0.27271,3666.4,3666.0,2.57001152]
[1736186517157,0.27271,3666.4,3666.0,2.84273152]
[1736186517357,3.2078,3667.1,3666.1,3.7923]
[1736186517558,0.27268,3666.7,3666.2,2.57001152]
[1736186517754,0.27269,3666.6,3666.3,0.27271]
[1736186517959,0.27269,3666.6,3666.4,1.152]
[1736186518160,1.1567,3667.0,3666.4,1.152]
[1736186518358,0.27269,3666.5,3666.4,1.152]
[1736186518760,0.27272,3666.2,3665.9,1.42474]
[1736186519758,0.27273,3666.1,3665.9,1.152]
[1736186519955,3.2078,3666.0,3664.8,3.2078]
[1736186520261,0.5729,3666.0,3665.7,0.27275]
[1736186520566,0.27272,3666.2,3665.6,0.27276]
[1736186520763,0.27272,3666.2,3665.5,2.57001152]
[1736186520967,3.2078,3666.5,3665.5,2.57001152]
[1736186521263,0.27272,3666.2,3665.8,0.27274]
[1736186521460,0.27273,3666.0,3665.6,0.27276]
[1736186521663,3.2078,3666.5,3665.5,2.57001152]
[1736186521960,0.5854,3666.6,3665.9,2.57001152]
[1736186522164,0.2727,3666.5,3666.1,0.27272]
[1736186522361,0.5854,3666.6,3665.9,2.57001152]
[1736186522562,3.2078,3666.0,3665.0,3.2078]
[1736186522772,3.2078,3665.7,3665.0,0.2728]
[1736186523071,0.27279,3665.3,3664.9,0.27281]
[1736186523361,2.57001152,3665.1,3663.9,9.56546613]
[1736186523554,0.27288,3664.0,3663.9,9.56546613]
[1736186523757,0.27288,3664.0,3663.9,6.35766613]
[1736186524359,0.68213,3664.4,3663.5,5.77781152]
[1736186524565,0.2729,3663.8,3663.5,5.77781152]
[1736186524769,1.1916,3664.5,3663.5,5.77781152]
[1736186525372,0.27288,3664.0,3663.6,1.42491]
[1736186525965,2.57001152,3663.7,3663.1,3.2078]
[1736186526261,0.27292,3663.4,3663.1,3.2078]
[1736186526460,2.57001152,3663.7,3662.7,3.2078]
[1736186526680,0.27293,3663.3,3662.8,0.27297]
[1736186526863,3.2078,3663.5,3662.7,4.3598]
[1736186527169,0.27295,3663.1,3662.7,4.3598]
[1736186527364,0.27295,3663.0,3662.7,3.2078]
[1736186527665,0.5575,3663.4,3662.7,3.2078]
[1736186527971,0.5575,3663.4,3662.8,0.27297]
[1736186528162,0.27293,3663.3,3662.8,0.27297]
[1736186528361,0.5575,3663.4,3662.7,3.2078]
[1736186528665,3.2078,3663.9,3663.1,3.2078]
[1736186529167,3.2078,3663.9,3663.3,0.27293]
[1736186529168,0.2729,3663.8,3663.3,0.27293]
[1736186529369,0.2729,3663.8,3663.2,1.152]
[1736186529568,0.2729,3663.8,3663.3,0.27293]
[1736186529869,0.2729,3663.8,3663.4,40.8]
[1736186530268,3.2078,3663.9,3663.4,40.8]
[1736186530766,0.27291,3663.7,3663.4,40.8]
[1736186530971,3.2078,3663.9,3663.4,40.8]
[1736186531174,0.2729,3663.8,3663.4,40.8]
[1736186531577,3.2078,3663.9,3663.4,40.8]
[1736186531578,0.2729,3663.7,3663.4,40.8]
[1736186532269,3.2078,3663.9,3663.4,40.8]
[1736186532471,3.2078,3663.9,3663.4,41.07292]
[1736186532869,3.2078,3663.9,3663.5,0.27291]
[1736186533067,0.5938,3664.2,3663.8,0.27289]
[1736186533377,3.2078,3664.8,3663.9,5.77781152]
[1736186533565,3.2078,3664.8,3664.4,0.27285]
[1736186533762,3.2078,3664.8,3664.4,0.27284]
[1736186533966,3.2078,3664.8,3664.5,0.27284]
[1736186534166,3.2078,3664.8,3664.3,2.57001152]
[1736186534471,3.2078,3664.8,3663.9,3.2078]
[1736186534663,0.27287,3664.2,3663.6,1.4249]
[1736186535067,3.2078,3664.3,3663.6,1.152]
[1736186535268,3.2078,3664.1,3663.1,2.57001152]
[1736186535464,3.2078,3664.1,3663.4,0.27292]
[1736186535668,0.2729,3663.8,3663.3,41.62233]
[1736186536669,0.2729,3663.8,3663.4,1.152]
[1736186537075,0.27288,3664.0,3663.4,1.152]
[1736186537272,0.27291,3663.6,3663.4,1.152]
[1736186537473,3.2078,3664.1,3663.4,1.152]
[1736186537678,3.2078,3664.1,3663.5,3.2078]
[1736186537972,3.2078,3664.1,3663.8,0.27289]
[1736186538176,3.2078,3664.1,3663.9,0.27288]
[1736186538473,3.2078,3664.1,3663.5,5.77781152]
[1736186538474,0.27284,3664.6,3663.6,0.27291]
[1736186538675,3.7894,3664.7,3663.5,5.77781152]
[1736186539075,0.27289,3663.9,3663.5,1.152]
[1736186539375,3.2078,3664.3,3663.4,1.152]
[1736186539578,3.2078,3664.3,3663.4,4.63272]
[1736186539579,0.27289,3663.9,3663.4,4.63272]
[1736186539974,0.2729,3663.8,3663.4,1.42492]
[1736186540175,3.48069,3663.9,3663.4,1.152]
[1736186540374,3.2078,3663.9,3663.5,0.27291]
[1736186540570,3.2078,3663.9,3663.4,4.3598]
[1736186540775,3.2078,3663.9,3663.8,0.27289]
[1736186541077,3.2078,3663.9,3663.4,4.3598]
[1736186541377,3.2078,3663.9,3663.8,0.27289]
[1736186541979,0.5933,3664.5,3664.2,0.27286]
[1736186542279,0.27284,3664.5,3664.1,0.27287]
[1736186542577,3.8019,3664.6,3664.2,1.152]
[1736186542776,3.2078,3664.6,3664.4,0.27284]
[1736186543084,3.2078,3664.6,3664.5,40.8]
[1736186543877,3.2078,3664.6,3664.5,41.07284]
[1736186544373,3.2078,3664.6,3664.5,40.8]
[1736186544780,3.2078,3664.6,3664.5,41.07284]
[1736186545377,0.5607,3665.2,3665.0,0.2728]
[1736186545573,3.2078,3665.3,3665.2,0.27279]
[1736186545875,3.2078,3665.7,3665.2,3.2078]
[1736186546080,0.5491,3666.0,3665.2,3.88977]
[1736186546284,0.5491,3666.0,3665.8,0.27274]
[1736186546480,0.5951,3666.2,3665.6,3.2078]
[1736186546781,2.0878016,3666.5,3666.1,0.27272]
[1736186546972,0.2727,3666.4,3666.0,0.27273]
[1736186547172,0.27272,3666.2,3665.9,1.152]
[1736186547578,0.27271,3666.3,3665.9,1.42474]
[1736186547779,0.5491,3666.6,3665.9,1.152]
[1736186548580,0.5491,3666.6,3666.0,40.8]
[1736186548779,0.82179,3666.6,3666.2,0.27271]
[1736186548985,0.27269,3666.5,3666.2,0.27271]
[1736186549185,0.82179,3666.6,3666.2,0.27271]
[1736186549479,3.48047,3666.9,3666.5,0.27269]
[1736186549674,3.2078,3666.9,3666.0,41.3431]
[1736186549870,0.27269,3666.5,3666.2,0.27271]
[1736186550074,3.2078,3666.9,3666.3,1.152]
[1736186550271,0.27272,3666.1,3665.5,0.27276]
[1736186550479,0.27275,3665.7,3665.4,1.42477]
[1736186550779,0.27274,3665.9,3665.5,0.27277]
[1736186550980,0.5851,3666.0,3665.9,0.27274]
[1736186551182,3.2078,3666.6,3665.7,3.2078]
[1736186551481,3.2078,3666.6,3666.3,0.27271]
[1736186551679,0.27269,3666.6,3666.2,1.151]
[1736186551877,0.27268,3666.7,3666.3,0.2727]
[1736186552280,0.5851,3666.8,3666.2,1.151]
[1736186552481,0.85777,3666.8,3666.4,0.2727]
[1736186552785,0.5851,3666.8,3666.2,1.151]
[1736186552980,0.5851,3666.8,3666.3,0.2727]
[1736186553281,3.2078,3667.0,3666.9,0.27266]
[1736186553473,0.27264,3667.3,3666.8,0.27267]
[1736186553679,0.27266,3667.0,3666.6,0.27269]
[1736186553881,3.2078,3667.1,3666.4,2.57001152]
[1736186554182,0.27268,3666.8,3666.3,0.27271]
[1736186554386,0.27267,3666.9,3666.5,0.27269]
[1736186554583,0.27269,3666.7,3666.3,1.151]
[1736186554780,0.5888,3666.8,3666.3,1.151]
[1736186554981,0.2727,3666.5,3666.3,1.151]
[1736186555181,3.2078,3666.7,3665.8,4.3598]
[1736186555381,0.2727,3666.5,3666.0,1.42373]
[1736186555692,0.85809,3666.6,3666.2,0.27272]
[1736186556180,0.5854,3666.6,3666.4,0.2727]
[1736186556378,0.5854,3666.6,3666.0,1.151]
[1736186556579,0.5854,3666.6,3666.4,0.2727]
[1736186556787,0.5854,3666.6,3666.0,3.72101152]
[1736186556981,0.5854,3666.6,3666.5,0.27269]
[1736186557187,3.2078,3667.1,3666.9,0.27266]
[1736186557486,3.2078,3667.1,3666.4,2.57001152]
[1736186557782,0.27268,3666.7,3666.0,3.72101152]
[1736186557988,0.5889,3666.6,3666.4,0.2727]
[1736186558280,0.5889,3666.6,3666.1,1.151]
[1736186558486,0.5889,3666.6,3666.5,0.27269]
[1736186558689,3.48045,3667.1,3666.8,0.27267]
[1736186558880,3.2078,3667.1,3667.0,0.27266]
[1736186559779,3.2078,3667.1,3667.0,41.07266]
[1736186559986,1.1309,3667.8,3667.0,44.0078]
[1736186560184,3.2078,3668.0,3667.6,2.57001152]
[1736186560390,3.2078,3668.0,3667.8,0.27259]
[1736186560684,3.2078,3668.0,3667.7,1.151]
[1736186561080,3.48038,3668.0,3667.7,1.4236]
[1736186561285,3.48038,3668.0,3667.7,1.151]
[1736186561789,3.48038,3668.0,3667.7,1.4236]
[1736186561991,0.05,3668.2,3667.7,1.151]
[1736186562192,3.2578,3668.4,3667.7,1.151]
[1736186562387,3.2578,3668.4,3667.8,3.2078]
[1736186562689,3.2578,3668.4,3668.1,0.27257]
[1736186562894,3.2578,3668.4,3668.3,0.27256]
[1736186563283,3.2578,3668.4,3667.8,3.7786]
[1736186563484,3.53036,3668.4,3668.0,0.27258]
[1736186563691,3.53036,3668.4,3667.9,40.8]
[1736186563692,0.27257,3668.3,3667.9,41.07258]
[1736186563893,3.2578,3668.4,3667.9,40.8]
[1736186564094,3.2578,3668.4,3667.7,1.151]
[1736186564288,1.7245,3668.3,3667.7,1.151]
[1736186564594,1.1792,3668.3,3668.2,0.27257]
[1736186564788,3.2578,3668.4,3667.8,44.0078]
[1736186564990,3.2578,3668.4,3668.2,0.27256]
[1736186565190,3.2578,3668.4,3668.1,0.27257]
[1736186565696,3.2578,3668.4,3667.8,40.8]
[1736186565993,0.27258,3668.1,3667.7,0.2726]
[1736186566193,0.5453,3668.3,3667.6,1.42361]
[1736186566396,0.5453,3668.3,3667.8,0.27259]
[1736186566397,0.27257,3668.2,3667.8,0.27259]
[1736186566594,0.5453,3668.3,3667.6,1.151]
[1736186566796,3.2578,3668.4,3667.8,3.2078]
[1736186567390,3.2578,3668.4,3668.1,0.27257]
[1736186567889,3.2578,3668.4,3667.8,3.2078]
[1736186568494,3.2578,3668.4,3668.3,0.27256]
[1736186569393,3.2578,3668.4,3668.3,41.07256]
[1736186569594,1.2292,3668.9,3668.3,40.8]
[1736186569803,0.05,3668.9,3668.8,0.27252]
[1736186569991,0.05,3668.9,3668.5,2.57001152]
[1736186569992,0.05,3668.9,3668.7,0.27252]
[1736186570193,0.05,3668.9,3668.5,2.57001152]
[1736186570396,0.05,3668.9,3668.8,0.27252]
[1736186570593,0.05,3668.9,3668.5,2.57001152]
[1736186570789,0.05,3668.9,3668.6,0.27253]
[1736186571204,0.32252,3668.9,3668.5,0.27254]
[1736186571398,0.05,3668.9,3668.6,0.27253]
[1736186571595,0.05,3668.9,3668.4,1.151]
[1736186571799,0.05,3668.9,3668.7,0.27253]
[1736186572198,0.27254,3668.6,3668.4,1.151]
[1736186572395,0.86223,3668.8,3668.2,3.2078]
[1736186572598,0.86223,3668.8,3668.4,0.27255]
[1736186572902,0.32252,3668.9,3668.5,0.27254]
[1736186573200,0.6397,3668.9,3668.4,40.8]
[1736186573604,0.27253,3668.8,3668.5,0.27254]
[1736186573805,0.6397,3668.9,3668.5,0.27254]
[1736186573995,0.6397,3668.9,3668.3,1.151]
[1736186573996,0.6098,3668.7,3668.4,0.27255]
[1736186574197,0.6098,3668.7,3668.6,0.27254]
[1736186574407,0.32252,3668.9,3668.6,0.27254]
[1736186574600,0.32252,3668.9,3668.5,0.27254]
[1736186574801,0.05,3668.9,3668.4,40.8]
[1736186575004,0.05,3668.9,3668.8,0.27252]
[1736186576905,0.05,3669.2,3668.6,3.7739]
[1736186577108,0.05,3669.3,3669.2,0.27249]
[1736186577402,0.05,3669.7,3669.3,0.27249]
[1736186577601,0.05,3669.7,3669.6,0.27246]
[1736186578212,0.05,3669.7,3669.6,41.07246]
[1736186578901,0.05,3669.7,3669.0,1.15]
[1736186579101,0.27247,3669.5,3669.1,0.2725]
[1736186579301,0.05,3669.7,3669.0,1.15]
[1736186579507,0.27247,3669.6,3669.0,41.95]
[1736186579707,0.32246,3669.7,3669.4,0.27248]
[1736186579908,0.05,3669.7,3669.0,44.52001152]
[1736186580212,0.05,3669.7,3669.3,0.27248]
[1736186580514,0.05,3669.7,3669.6,0.27246]
[1736186580805,0.27248,3669.4,3669.0,43.37001152]
[1736186581011,0.05,3669.7,3669.1,1.15]
[1736186581307,0.05,3669.7,3669.6,0.27246]
[1736186582210,0.05,3669.7,3669.5,0.27247]
[1736186582508,0.05,3669.7,3669.6,0.27246]
[1736186582702,0.05,3669.7,3669.6,40.8]
[1736186582909,0.32246,3669.7,3669.6,40.8]
[1736186583102,0.32246,3669.7,3669.0,0.2725]
[1736186583103,0.27249,3669.3,3669.0,0.2725]
[1736186583304,0.27249,3669.3,3669.1,1.15]
[1736186583812,0.05,3669.7,3669.1,1.15]
[1736186584207,0.05,3669.7,3669.6,0.27246]
[1736186584907,3.2078,3669.8,3669.6,3.2078]
[1736186584908,0.05,3669.8,3669.6,3.2078]
[1736186585110,0.05,3669.8,3669.7,0.27246]
[1736186585604,0.05,3670.2,3669.6,3.2078]
[1736186585808,0.05,3670.2,3670.1,0.27243]
[1736186586014,0.05,3670.2,3670.1,3.48023]
[1736186586501,0.05,3670.2,3670.1,41.07243]
[1736186587305,0.05,3670.2,3670.0,1.42243]
[1736186587613,0.05,3670.2,3670.0,0.27243]
[1736186588113,0.32242,3670.2,3669.9,42.22243]
[1736186588301,0.05,3670.2,3669.9,41.95]
[1736186588506,0.05,3670.2,3670.0,0.27243]
[1736186588507,0.32242,3670.2,3670.0,0.27243]
[1736186588707,0.05,3670.2,3669.9,41.95]
[1736186588902,0.05,3670.2,3670.0,0.27243]
[1736186589111,0.05,3670.2,3669.9,41.95]
[1736186589416,0.05,3670.2,3670.1,0.27243]
[1736186590114,0.05,3670.2,3669.9,41.95]
[1736186590502,0.32243,3670.2,3669.9,42.22243]
[1736186590709,0.27243,3670.0,3669.9,41.95]
[1736186591316,0.27247,3669.5,3669.3,1.15]
[1736186591614,0.68114,3669.8,3669.0,2.57001152]
[1736186591815,0.5964,3669.4,3668.5,6.33991152]
[1736186592018,0.27251,3669.0,3668.8,0.27252]
[1736186592214,0.27251,3669.0,3668.6,1.15]
[1736186592215,0.5964,3669.4,3669.3,0.27249]
[1736186592418,0.5964,3669.4,3668.9,5.77781152]